Cogmind - Beta 13 @@@ ROGUE MODE // 2024.05.05 @ 16:16:24 Player: Bzilon Result: Destroyed by G-47 Trooper with Particle Gun Performance ------------- Evolutions (1) 500 Regions Visited (3) 600 Robots Destroyed (28) 140 Value Destroyed (597) 597 Prototype IDs (2) 40 Alien Tech Used (0) 0 Bonus (0) 0 TOTAL SCORE: 1877 Bonus ------- None Cogmind --------- Core Integrity 0/400 Matter 55/300 Energy 250/250 System Corruption 3% Temperature Cool (66) Movement Core (550) Ox10 Location -9/Materials Parts ------- > --- POWER (1) -------- Ion Engine > --- PROPULSION (2) --- (None) > --- UTILITY (4) ------ Large Storage Unit ECM Suite Hacking Suite > --- WEAPON (2) ------- Small Laser Light Cannon > --- INVENTORY (15) --- Light Treads Light Treads Hover Unit Small Storage Unit Hacking Suite Small Laser Light Assault Rifle Peak State ------------ > --- POWER ------------ Light Ion Engine > --- PROPULSION ------- Light Treads Light Treads > --- UTILITY ---------- Large Storage Unit Weapon Shielding Improved Light Armor Plating Hardlight Generator > --- WEAPON ----------- Small Laser Light Cannon > --- INVENTORY -------- Light Ion Engine Light Treads Light Treads Light Treads Light Treads Light Treads Light Treads Hover Unit Small Storage Unit ECM Suite Small Laser Heavy Assault Rifle Light Cannon [Rating: 14] Favorites ----------- Power Light Ion Engine Engine Light Ion Engine Propulsion Light Treads Treads Light Treads Utility Large Storage Unit Device ECM Suite Storage Large Storage Unit Hackware Hacking Suite Protection Weapon Shielding Weapon Small Laser Energy Gun Small Laser Ballistic Gun Heavy Assault Rifle Ballistic Cannon Light Cannon Launcher Grenade Launcher Build | -11 -10 -10 -9 ------- Run | Yrd Mat Min Mat Slots Evolved 2 | . . . 2 Power . | . . . . Propulsion . | . . . . Utility 2 | . . . 2 Weapon . | . . . . Parts Attached 28 | 6 4 . 18 Power 3 | 1 . . 2 Engine 3 | 1 . . 2 Core . | . . . . Reactor . | . . . . Propulsion 6 | 2 . . 4 Treads 6 | 2 . . 4 Leg . | . . . . Wheel . | . . . . Hover . | . . . . Flight . | . . . . Utility 10 | 1 3 . 6 Device 3 | . 1 . 2 Storage 3 | 1 2 . . Processor . | . . . . Hackware 1 | . . . 1 Protection 3 | . . . 3 Artifact . | . . . . Weapon 9 | 2 1 . 6 Energy Gun 4 | 2 . . 2 Energy Cannon . | . . . . Ballistic Gun 1 | . . . 1 Ballistic Cannon 3 | . . . 3 Launcher 1 | . 1 . . Special Weapon . | . . . . Impact Weapon . | . . . . Slashing Weapon . | . . . . Piercing Weapon . | . . . . Special Melee Weapon . | . . . . Unidentified Prototypes . | . . . . Parts Lost 15 | . . . 15 Power 2 | . . . 2 Propulsion 6 | . . . 6 Utility 3 | . . . 3 Weapon 4 | . . . 4 Highest Loss Streak 11 | . . . 11 To Critical Strikes . | . . . . Average Slot Usage (%) 92 | . 97 100 85 Engine 12 | . 14 14 9 Treads 24 | . 28 28 20 Device 10 | . 11 14 8 Storage 12 | . 14 14 11 Protection 6 | . . . 14 Energy Gun 12 | . 14 14 10 Ballistic Cannon 3 | . . . 8 Launcher 7 | . 13 14 . Naked Turns . | . . . . Heaviest Build 36 | 10 32 29 36 Greatest Support 40 | 40 40 40 40 Greatest Overweight (x) 10 | . . . 10 Average Overweight (x) . | . . . . Largest Inventory Capacity 15 | 8 15 15 15 Average Capacity 14 | 7 13 15 15 Most Carried 15 | 5 12 14 15 Average Carried 10 | 1 9 13 11 Final Capacity 15 | 8 15 15 15 Final Carried 14 | 2 12 14 7 Class Distribution -------------------- 100% | Mutant Dominant Class ---------------- Mutant | -10/Materials Mutant | -10/Mines Mutant | -9/Materials Resources | -11 -10 -10 -9 ----------- Run | Yrd Mat Min Mat Matter Collected 427 | 154 20 49 204 Remotely . | . . . . Salvage Created 601 | . 105 31 465 Parts 54 | . 13 3 38 Haulers Intercepted . | . . . . Recyclers Shooed . | . . . . Parts Field Recycled . | . . . . Retrieved Matter . | . . . . Parts Self-Destructed . | . . . . Prevented . | . . . . Kills | -11 -10 -10 -9 ------- Run | Yrd Mat Min Mat Combat Hostiles Destroyed 22 | . 3 2 17 Guns 16 | . 1 2 13 Cannons 4 | . . . 4 AOE 2 | . 2 . . Classes Destroyed 6 | . 4 1 1 Worker 2 | . 1 . 1 Builder 1 | . 1 . . Watcher 3 | . 2 . 1 Swarmer 10 | . . 2 8 Grunt 11 | . 3 . 8 Sentry 1 | . . . 1 Best Kill Streak 7 | . 5 2 7 Combat Bots Only 4 | . 3 2 4 Max Kills in Single Turn 2 | . 2 1 1 Gunslinging . | . . . . Exploded 1 | . 1 . . Melee . | . . . . Uniques/NPCs Destroyed . | . . . . Combat | -11 -10 -10 -9 -------- Run | Yrd Mat Min Mat Hostile Shots Fired 328 | . 18 13 297 Missed 95 | . 5 4 86 Damage Taken 2455 | . 199 110 2146 Core 448 | . 27 20 401 Absorbed by Shields . | . . . . Redirected to Shielding 51 | . . . 51 Core Remaining (%) 90 | 100 . 81 . Volleys Fired 84 | . 14 2 68 Largest 2 | . 2 2 2 Hottest 80 | . 70 70 80 Shots Fired 136 | . 19 4 113 Gun 84 | . 14 2 68 Cannon 45 | . . . 45 Launcher 7 | . 5 2 . Special . | . . . . Kinetic 53 | . . . 53 Thermal 76 | . 14 2 60 Explosive 7 | . 5 2 . Electromagnetic . | . . . . Robot Hit Streak 8 | . 4 2 8 Robot Miss Streak 7 | . 2 1 7 Penetration Max . | . . . . Secondary Targets 1 | . . . 1 Max Gunslinging Chain 1 | . . . 1 Shots Hit Robots 82 | . 11 2 69 Core Hits 42 | . 13 2 27 Critical Kills . | . . . . Critical Parts Destroyed . | . . . . Critical Strikes 1 | . . . 1 Blast 1 | . . . 1 Melee Attacks . | . . . . Impact . | . . . . Slashing . | . . . . Piercing . | . . . . Sneak Attacks . | . . . . Combat Hostiles . | . . . . Follow-up Attacks . | . . . . Damage Inflicted 1752 | . 694 59 999 Guns 677 | . 77 23 577 Cannons 414 | . . . 414 Explosions 652 | . 616 36 . Melee . | . . . . Ramming 9 | . 1 . 8 Kinetic 484 | . . . 484 Thermal 860 | . 330 23 507 Explosive 399 | . 363 36 . Electromagnetic . | . . . . Impact . | . . . . Slashing . | . . . . Piercing . | . . . . Highest Corruption 3 | . . . 3 Average Corruption 2 | . . . 2 Corruption Purged . | . . . . Corruption Blocked . | . . . . Effects 6 | . . . 6 Message Errors 1 | . . . 1 Matter Fused 1 | . . . 1 Heat Flow Errors 1 | . . . 1 Energy Discharges 2 | . . . 2 Parts Rejected 1 | . . . 1 Overload Shots . | . . . . Overflow Damage 75 | . 75 . . Projectiles . | . . . . Explosions 75 | . 75 . . Melee . | . . . . Knockbacks 11 | . . . 11 Impact . | . . . . Kinetic 10 | . . . 10 Secondary 1 | . . . 1 Self-Inflicted Damage 68 | . 37 31 . Shots 3 | . 2 1 . Rammed 3 | . 1 . 2 Targets Rammed 3 | . 1 . 2 Kicked . | . . . . Crushed . | . . . . Highest Temperature 117 | . 96 18 117 Average Temperature 42 | . 48 10 42 Received Heat Transfer 870 | . 90 . 780 Siege Activations . | . . . . Robots Corrupted . | . . . . Combat Hostiles . | . . . . Parts Fried . | . . . . Impact Corruptions . | . . . . Robots Melted . | . . . . Combat Hostiles . | . . . . Parts Melted . | . . . . Heat Transferred 1625 | . 425 50 1150 Parts Sabotaged . | . . . . Parts Stolen . | . . . . Parts Stripped . | . . . . Power Chain Reactions . | . . . . Alert | -11 -10 -10 -9 ------- Run | Yrd Mat Min Mat Peak Influence 322 | . 172 91 322 Initial 35 | . . 22 35 Average 95 | . 67 70 142 Maximum Alert Level 1 | . . . 1 Low Security (%) 90 | 100 100 100 77 Level 1 9 | . . . 22 Level 2 . | . . . . Level 3 . | . . . . Level 4 . | . . . . Level 5 . | . . . . High Security . | . . . . Max Security . | . . . . Squads Dispatched 3 | . . . 3 Investigation . | . . . . Extermination . | . . . . Reinforcement 3 | . . . 3 Assault . | . . . . Garrison . | . . . . Intercept . | . . . . Searches Triggered . | . . . . Construction Impeded . | . . . . Haulers Reinforced . | . . . . Active Scanning Responses . | . . . . Cargo Convoy Interrupts . | . . . . Stealth | -11 -10 -10 -9 --------- Run | Yrd Mat Min Mat Distress Signals 3 | . 2 . 1 Communications Jammed . | . . . . Distress Signals . | . . . . Times Spotted 51 | . 13 4 34 Peak Tracking Total 8 | . 6 3 8 Tactical Retreats 6 | . 3 1 2 Traps | -11 -10 -10 -9 ------- Run | Yrd Mat Min Mat Traps Triggered 2 | . . . 2 Indirectly . | . . . . Trap Hack Attempts . | . . . . Triggered . | . . . . Disarmed . | . . . . Reprogrammed . | . . . . Reused . | . . . . Traps Extracted . | . . . . Installed . | . . . . Triggered . | . . . . Machines | -11 -10 -10 -9 ---------- Run | Yrd Mat Min Mat Machines Disabled 1 | . 1 . . Max in Single Turn 1 | . 1 . . Machines Repaired . | . . . . Machines Dismantled . | . . . . Machines Sabotaged . | . . . . Overloaded Fab Kills . | . . . . Hacking | -11 -10 -10 -9 --------- Run | Yrd Mat Min Mat Machines Accessed 3 | . 3 . . Terminals 3 | . 3 . . Fabricators . | . . . . Repair Stations . | . . . . Recycling Units . | . . . . Scanalyzers . | . . . . Garrison Access . | . . . . Total Hacks 13 | . 13 . . Successful 5 | . 5 . . Failed 8 | . 8 . . Catastrophic . | . . . . Database Lockouts . | . . . . Manual . | . . . . Terminals 13 | . 13 . . Fabricators . | . . . . Repair Stations . | . . . . Recycling Units . | . . . . Scanalyzers . | . . . . Garrison Access . | . . . . Terminal Hacks 5 | . 5 . . Prototype ID Bank 1 | . 1 . . Emergency Access Points 1 | . 1 . . Alert Level 2 | . 2 . . Maintenance Status 1 | . 1 . . Fabricator Hacks . | . . . . Repair Station Hacks . | . . . . Recycling Unit Hacks . | . . . . Scanalyzer . | . . . . Garrison Access Hacks . | . . . . Unauthorized Hacks . | . . . . Terminals . | . . . . Fabricators . | . . . . Repair Stations . | . . . . Recycling Units . | . . . . Scanalyzers . | . . . . Garrison Access . | . . . . Data Cores Recovered . | . . . . Used . | . . . . Hacking Detections 3 | . 3 . . Full Trace Events 1 | . 1 . . Feedback Events . | . . . . Feedback Blocked . | . . . . Robot Schematics Acquired . | . . . . Robots Built . | . . . . Authchips . | . . . . Time . | . . . . Total Robot Build Rating . | . . . . Part Schematics Acquired . | . . . . Parts Built . | . . . . Authchips . | . . . . Time . | . . . . Total Part Build Rating . | . . . . Parts Repaired . | . . . . Time . | . . . . Parts Recycled . | . . . . Recycled Matter . | . . . . Retrieved Matter . | . . . . Retrieved Components . | . . . . Parts Scanalyzed . | . . . . Part Schematics Acquired . | . . . . Parts Damaged . | . . . . Bothacking | -11 -10 -10 -9 ------------ Run | Yrd Mat Min Mat Used RIF Installer . | . . . . Robots Hacked . | . . . . Non-combat . | . . . . Combat . | . . . . Robot Hacks Applied . | . . . . Relay Couplers Released . | . . . . Fabnet Peak Effective % . | . . . . Robots Rewired . | . . . . Allies Hacked . | . . . . Hacks Repelled . | . . . . Allies | -11 -10 -10 -9 -------- Run | Yrd Mat Min Mat Total Allies . | . . . . Largest Group . | . . . . Highest-Rated Group . | . . . . Highest-Rated Ally . | . . . . Total Orders . | . . . . Ally Attacks . | . . . . Total Damage . | . . . . Kills . | . . . . Allies Corrupted . | . . . . Allies Melted . | . . . . Intel | -11 -10 -10 -9 ------- Run | Yrd Mat Min Mat Robot Analysis Total . | . . . . Derelict Logs Recovered . | . . . . Drone Launches . | . . . . Drone Recoveries . | . . . . Exploration | -11 -10 -10 -9 ------------- Run | Yrd Mat Min Mat Turns Passed 1396 | 60 569 203 564 Spaces Moved 697 | 40 324 122 211 Core 17 | 15 . . 2 Treads 680 | 25 324 122 209 Legs . | . . . . Wheels . | . . . . Hover . | . . . . Flight . | . . . . Fastest Speed 50 | 50 160 160 160 Average Speed 158 | 118 160 160 164 Slowest Speed 550 | 160 160 160 550 Overloaded Moves . | . . . . Propulsion Burnouts . | . . . . Robots Hopped . | . . . . Cave-ins Triggered . | . . . . Exploration Rate (%) 26 | 3 49 30 22 Regions Visited 3 Branch Regions 1 Pre-discovered Areas . | . . . . Known Exits Taken . | . . . . Unknown Exits Taken 3 | 1 1 1 . Scrap Searched 1 | . . 1 . Spaces Dug . | . . . . Terrain Destroyed 61 | . 42 19 . Melee . | . . . . Projectile . | . . . . AOE 61 | . 42 19 . Terrain Rammed . | . . . . Walls Destroyed . | . . . . Machines Disabled . | . . . . Actions | -11 -10 -10 -9 --------- Run | Yrd Mat Min Mat Total 847 | 53 354 126 314 Wait 1 | . . 1 . Move 694 | 39 323 121 211 Hop . | . . . . Pick Up 32 | 8 11 2 11 Fast Attach 2 | . 1 . 1 Attach 22 | 6 1 . 15 Detach . | . . . . Swap 4 | . 2 . 2 Drop 5 | . 1 . 4 Fire 84 | . 14 2 68 Melee . | . . . . Ram . | . . . . Kick . | . . . . Crush 3 | . 1 . 2 Escape Stasis . | . . . . Rewire . | . . . . Trap . | . . . . Miscellaneous . | . . . . Route ------- -11/Scrapyard -10/Materials (discovered 2 exits: [*Mat] / [*Min]) -10/Mines -9/Materials History --------- Turn | Location | Event 6 | -11/Scrapyard | Discovered new exit (range 15) 61 | -11/Scrapyard | Entered Materials 314 | -10/Materials | Build established: Mutant 599 | -10/Materials | Discovered new exit (range 12) 604 | -10/Materials | Discovered new exit (range 16) 630 | -10/Materials | Entered Mines 644 | -10/Mines | Met a Derelict bent on vengeance 825 | -10/Mines | Discovered new exit (range 3) 833 | -10/Mines | Entered Materials 833 | -9/Materials | Evolved 2 slots: Utility x2 1251 | -9/Materials | Core integrity fell below 50% 1269 | -9/Materials | Core integrity fell below 20% 1321 | -9/Materials | Lost 11 parts (2p3n3u3w) 1397 | -9/Materials | Destroyed by G-47 Trooper with Particle Gun Last Messages --------------- G-34 Mercenary destroyed. Acquired 4 matter. Acquired Ion Engine. Acquired Lgt. Assault Rifle. Acquired Lgt. Cannon. Acquired Hacking Suite. System corrupted: Energy discharge (-69). R-06 Scavenger collects Flight Unit. R-06 Scavenger collects Lgt. Ion Engine. Acquired 1 matter. R-06 Scavenger collects Lgt. Ion Engine. R-06 Scavenger collects Flight Unit. M-13 Machinist repairs R-06 Scavenger. R-06 Scavenger collects Lgt. Ion Engine. Lgt. Treads destroyed. G-34 Mercenary destroyed. Acquired 16 matter. Lgt. Treads destroyed. Acquired 43 matter. G-34 Mercenary destroyed. Map ----- +----------------------------------------------------+ | | | ?????????????????????????????????????????????????? | | ?????????????????????????????????????????????????? | | ?????????????????????????????????????????????????? | | ?????????????????????????????????????????????????? | | ?????????????????????????????????????????????????? | | ?????????????????????????????????????????????????? | | ?????????????????????????????????????????????????? | | ?????????????????????????????????????????????????? | | ?????????????????????????????????????????????????? | | ?????????????????????????????????????????????????? | | ?????????????????????????????????????????????????? | | ?????????????????????????????????????????????????? | | ?????????????????????????????????????????????????? | | ?????????????????????????????????????????????????? | | ?????????????????????????????????????????????????? | | ?????????????????????????????????????????????????? | | ?????????????????????????????????????????????????? | | ?????????????????????????########????????????????? | | ?????????????????????????#!!!!!!#????????????????? | | ?????????????????????????#!! !!#????????????????? | | ??????????# ?????????????# #????????????????? | | ?????###### ############ ############+????? | | ?? % % g !=% ???? | | ???# /% % % % %=%= ???? | | ????? """ %%[ @ %=%![ ???? | | ??????"T" ! %############ ==#######+#####??????? | | ????? ?????# ##= =#??????????????????? | | ???# ??????# # % #??????????????????? | | ???? = ???????# % #??????????????????? | | ???? ????????# # = #??????????????????? | | ???? ??????????# # #??????????????????? | | ????? ???????????# ?# #??????????????????? | | ????? ?????????????######?# #??????????????????? | | ??????????????????????????# #??????????????????? | | ??????????????????????????# #??????????????????? | | ????????????????????????? + #??????????????????? | | ???????????????????????? # ^#??????????????????? | | ??????????????????????? # ^^#??????????????????? | | ?????????????????????? ?# #??????????????????? | | ?????????????????????####?# %#??????????????????? | | ???????????#######????????# = #??????????????????? | | ???????????# #????????# #??????????#???????? | | ???????????# #????????+ ####### #??????? | | ???????????# #????????#=[ #??????? | | ???????????# ########## = T ???????? | | ???????????# """ + %% [= * #??????? | | ???????????# """ # #########+####+### %#??????? | | ???????????# """ # # T #?????????????? ##??????? | | ???????????####### # #????????????????#???????? | +----------------------------------------------------+ Best States ------------- Heat Dissipation 28 Energy Generation 10 Energy Capacity 250 Matter Stores 194 Matter Capacity 300 Sight Range 16 Terrain Scan Density 10 ECM Strength 1 Armor Coverage 150 Weapon Shielding 33 Evasion (%) 50 Recoil Reduction 2 Offensive Hacking 10 Item Schematics ----------------- None Robot Schematics ------------------ None Fabricated ------------ Nothing Alien Tech Used ----------------- None Achievements -------------- None Challenges ------------ None Game ------ Seed HoverCryofiberDeconstructor Manual? 0 Play Time 00:25:13 Cumulative 6.6 hours Start 2024.05.05 @ 12:23:48 End 2024.05.05 @ 16:16:24 Sessions 1 Manual Loads 0 Difficulty Rogue Special Mode None Game No. 14 Rogue 14 Adventurer 0 Explorer 0 Win Type - Total 0 Types 0/0/0/0/0/0/0/0/0 Lore% 13 Gallery% 9 Achievement% 9 Wizard Run 0 Options --------- Layout 1 ASCII 0 Keyboard 0 Movement Mouse Keybinds 0 Fullscreen 2 Font 24/Crisp Map View 50x35 Zoom Use 0% Tactical HUD 0 Map Filters NONE Filters NONE Steam 1 RUN: 405b4ad8-c41e-4bd5-889f-2793c2545ba5